fUST/lending_fUST_20250407
["ID","MTS","AMOUNT","RATE_DAILY","PERIOD"]
[357279640,1743975057067,-357.0,0.00045813,30]
[357279641,1743975057076,-318.0,0.00045813,30]
[357279642,1743975057086,-357.0,0.00045813,30]
[357279643,1743975057096,-318.0,0.00045813,30]
[357279644,1743975057106,-357.0,0.00045813,30]
[357279645,1743975057116,-318.0,0.00045813,30]
[357279646,1743975057131,-357.0,0.00045813,30]
[357279647,1743975057142,-318.0,0.00045813,30]
[357279648,1743975057151,-357.0,0.00045813,30]
[357279649,1743975057161,-318.0,0.00045813,30]
[357279650,1743975057170,-357.0,0.00045813,30]
[357279651,1743975057181,-318.0,0.00045813,30]
[357279652,1743975057191,-357.0,0.00045813,30]
[357279653,1743975057202,-318.0,0.00045813,30]
[357279654,1743975057212,-357.0,0.00045813,30]
[357279655,1743975057222,-318.0,0.00045813,30]
[357279656,1743975057231,-318.0,0.00045813,30]
[357279657,1743975057241,-357.0,0.00045813,30]
[357279658,1743975057250,-357.0,0.00045813,30]
[357279659,1743975057260,-318.0,0.00045813,30]
[357279660,1743975057271,-155.96194704,0.00045813,30]
[357279661,1743975057281,-318.0,0.00045813,30]
[357279662,1743975057291,-318.0,0.00045813,30]
[357279663,1743975057301,-318.0,0.00045813,30]
[357279664,1743975057311,-318.0,0.00045813,30]
[357279665,1743975057321,-318.0,0.00045813,30]
[357279666,1743975057331,-318.0,0.00045813,30]
[357279667,1743975057354,-318.0,0.00045813,30]
[357279668,1743975057375,-318.0,0.00045813,30]
[357279669,1743975057399,-318.0,0.00045813,30]
[357279670,1743975057422,-318.0,0.00045813,30]
[357279671,1743975057443,-154.283921,0.00045813,120]
[357279672,1743975057462,-152.195235,0.00045813,120]
[357279673,1743975057482,-152.195235,0.00045813,120]
[357279674,1743975057498,-151.0,0.00045813,2]
[357279675,1743975057517,-542.0,0.00045821,2]
[357279676,1743975057537,-1478.0,0.00045821,2]
[357279677,1743975057556,-2254.0,0.00045821,2]
[357279678,1743975057570,-401.0,0.00045821,2]
[357279679,1743975057591,-762.37334395,0.00045851,120]
[357279680,1743975057608,-13529.54129566,0.0004588,30]
[357279681,1743975057626,-762.37334395,0.00045951,120]
[357279682,1743975057645,-10000.0,0.00046,46]
[357279683,1743975057660,-1936.0,0.00046,120]
[357279684,1743975057678,-1936.0,0.00046,120]
[357279685,1743975057694,-154.51,0.00046,39]
[357279686,1743975057709,-154.51,0.00046,39]
[357279687,1743975057724,-154.51,0.00046,39]
[357279688,1743975057740,-154.51,0.00046,39]
[357279689,1743975057756,-154.51,0.00046,39]
[357279690,1743975057771,-154.51,0.00046,39]
[357279691,1743975057787,-160.0,0.00046,10]
[357279692,1743975057804,-500.0,0.00046027,13]
[357279693,1743975057821,-5670.27,0.00046027,120]
[357279694,1743975057835,-762.37334395,0.00046051,120]
[357279695,1743975057851,-3319.33720673,0.00046141,19]
[357279696,1743975057866,-150.05,0.00046145,60]
[357279697,1743975057882,-500.0,0.00046145,60]
[357279698,1743975057897,-300.0,0.00046145,60]
[357279699,1743975057913,-150.05,0.00046145,60]
[357279700,1743975057928,-150.05,0.00046145,29]
[357279701,1743975057944,-150.05,0.00046145,60]
[357279702,1743975057959,-762.37334395,0.00046151,120]
[357279703,1743975057975,-1082.769484,0.0004618,18]
[357279704,1743975057990,-175.306804,0.00046188,120]
[357279705,1743975058004,-150.0,0.000462,120]
[357279706,1743975058020,-150.0,0.000462,120]
[357279707,1743975058036,-1000.0,0.000462,19]
[357279708,1743975058053,-762.37334395,0.00046251,120]
[357279709,1743975058068,-500.0,0.00046276,17]
[357279710,1743975058084,-500.0,0.00046276,17]
[357279711,1743975058100,-199.86,0.00046282,60]
[357279712,1743975058117,-504.48944679,0.00046282,60]
[357279713,1743975058133,-150.05,0.00046282,60]
[357279714,1743975058148,-200.86412982,0.00046282,29]
[357279715,1743975058164,-200.545539,0.00046282,60]
[357279716,1743975058180,-563.9791657,0.00046288,30]
[357279717,1743975058197,-563.9791657,0.00046288,30]
[357279718,1743975058212,-563.9791657,0.00046288,30]
[357279719,1743975058228,-563.9791657,0.00046288,30]
[357279720,1743975058244,-563.9791657,0.00046288,30]
[357279721,1743975058259,-1199.63979,0.00046288,30]
[357279722,1743975058274,-563.9791657,0.00046288,30]
[357279723,1743975058288,-5820.6002899,0.00046292,120]
[357279724,1743975058304,-1083.59867865,0.00046292,2]
[357279725,1743975058318,-2984.81710045,0.00046292,28]
[357279726,1743975058337,-349.8,0.000463,30]
[357279727,1743975058351,-500.0,0.000463,100]
[357279728,1743975058366,-151.0,0.00046301,120]
[357279729,1743975058384,-151.0,0.00046301,120]
[357279730,1743975058399,-151.0,0.00046301,120]
[357279731,1743975058415,-151.0,0.00046301,120]
[357279732,1743975058431,-151.0,0.00046301,120]
[357279733,1743975058447,-264.934086,0.00046301,120]
[357279734,1743975058462,-151.0,0.00046301,120]
[357279735,1743975058476,-151.0,0.00046301,120]
[357279736,1743975058489,-151.0,0.00046301,120]
[357279737,1743975058499,-175.84516,0.00046301,120]
[357279738,1743975058509,-151.0,0.00046301,120]
[357279739,1743975058520,-151.0,0.00046301,120]
[357279740,1743975058531,-151.0,0.00046301,120]
[357279741,1743975058542,-151.0,0.00046301,120]
[357279742,1743975058551,-260.182962,0.00046301,120]
[357279743,1743975058561,-151.0,0.00046301,120]
[357279744,1743975058571,-151.0,0.00046301,120]
[357279745,1743975058581,-151.0,0.00046301,120]
[357279746,1743975058591,-151.0,0.00046301,120]
[357279747,1743975058602,-151.0,0.00046301,120]
[357279748,1743975058612,-500.0,0.00046301,15]
[357279749,1743975058629,-151.0,0.00046301,120]
[357279750,1743975058639,-154.972528,0.00046301,120]
[357279751,1743975058649,-151.0,0.00046301,120]
[357279752,1743975058659,-225.774148,0.00046301,120]
[357279753,1743975058670,-151.0,0.00046301,120]
[357279754,1743975058947,-151.0,0.00046301,120]
[357279755,1743975058968,-151.0,0.00046301,120]
[357279756,1743975059000,-151.0,0.00046301,120]
[357279757,1743975059010,-151.0,0.00046301,120]
[357279758,1743975059020,-151.0,0.00046301,120]
[357279759,1743975059031,-249.127736,0.00046301,120]
[357279760,1743975059040,-151.0,0.00046301,120]
[357279761,1743975059050,-151.0,0.00046301,120]
[357279762,1743975059060,-183.849904,0.00046301,120]
[357279763,1743975059069,-1000.0,0.0004633,120]
[357279764,1743975059079,-151.0,0.00046339,120]
[357279765,1743975059089,-151.0,0.00046339,120]
[357279766,1743975059099,-151.0,0.00046339,120]
[357279767,1743975059109,-762.37334395,0.00046351,120]
[357279768,1743975059120,-156.5843743,0.00046376,30]
[357279769,1743975059132,-156.5843743,0.00046376,30]
[357279770,1743975059143,-312.6792071,0.00046376,30]
[357279771,1743975059154,-563.9791657,0.00046376,30]
[357279772,1743975059163,-563.9791657,0.00046376,30]
[357279773,1743975059173,-157.079544,0.00046388,2]
[357279774,1743975059183,-197.979384,0.00046391,120]
[357279775,1743975059193,-151.0,0.00046391,120]
[357279776,1743975059204,-151.0,0.00046392,120]
[357279777,1743975059214,-151.0,0.00046392,120]
[357279778,1743975059224,-151.0,0.00046392,120]
[357279779,1743975059234,-229.453508,0.00046392,120]
[357279780,1743975059244,-152.195235,0.00046392,120]
[357279781,1743975059254,-152.195235,0.00046392,120]
[357279782,1743975059264,-152.195235,0.00046392,120]
[357279783,1743975059274,-152.195235,0.00046392,120]
[357279784,1743975059284,-152.195235,0.00046392,120]
[357279785,1743975059295,-152.195235,0.00046392,120]
[357279786,1743975059305,-152.195235,0.00046392,120]
[357279787,1743975059316,-152.195235,0.00046392,120]
[357279788,1743975059326,-152.195235,0.00046392,120]
[357279789,1743975059337,-152.195235,0.00046392,120]
[357279790,1743975059348,-152.195235,0.00046392,120]
[357279791,1743975059358,-152.195235,0.00046392,120]
[357279792,1743975059370,-152.195235,0.00046392,120]
[357279793,1743975059381,-152.19523813,0.00046392,120]
[357279794,1743975059391,-151.0,0.00046392,2]
[357279795,1743975059401,-151.0,0.00046392,2]
[357279796,1743975059411,-151.0,0.00046392,2]
[357279797,1743975059422,-151.0,0.00046392,2]
[357279798,1743975059432,-151.0,0.00046392,2]
[357279799,1743975059441,-212.273069,0.00046392,2]
[357279800,1743975059451,-97362.82538006,0.00046392,20]
[357279801,1743975059472,-470.00943786,0.00046392,20]
[357279802,1743975059494,-677.08333333,0.00039614,2]
[357279803,1743975059503,-7862.91666667,0.00046392,20]
[357279804,1743975059516,-34854.24324732,0.00046392,20]
[357279805,1743975059527,-4879.84576968,0.00046392,20]
[357279812,1743975455522,170.473934,0.00013699,2]
[357279814,1743975609390,-718.89937621,0.00023507,2]
[357279816,1743975758632,-600.0,0.00023523,2]
[357279817,1743976167133,-300.0,0.00023576,2]
[357279818,1743976167155,-1115.23534894,0.00023577,2]
[357279871,1743976232292,-300.0,0.00023576,2]
[357279873,1743976232302,-209.06837346,0.00023577,2]
[357279875,1743976232314,-23575.6962776,0.00023577,2]
[357279877,1743976232324,-350.809505,0.00023602,2]
[357279879,1743976232334,-1700.0,0.0002414,2]
[357279881,1743976232344,-2769.37041695,0.00024473,2]
[357279883,1743976232354,-1083.59867865,0.00024558,2]
[357279885,1743976232365,-173.72658464,0.00024558,2]
[357279887,1743976232375,-500.0,0.00024573,2]
[357279889,1743976232385,-500.0,0.00024573,2]
[357279891,1743976232394,-502.21148346,0.00024573,2]
[357279893,1743976232403,-500.0,0.00024573,2]
[357279895,1743976232413,-500.0,0.00024573,2]
[357279897,1743976232422,-511.12613421,0.00024573,2]
[357279899,1743976232432,-500.0,0.00024573,2]
[357279901,1743976232441,-500.0,0.00024573,2]
[357279903,1743976232451,-500.64861781,0.00024573,2]
[357279905,1743976232460,-500.0,0.00024573,2]
[357279907,1743976232470,-500.0,0.00024573,2]
[357279909,1743976232479,-500.0,0.00024573,2]
[357279911,1743976232489,-500.0,0.00024573,2]
[357279913,1743976232498,-500.0,0.00024573,2]
[357279915,1743976232508,-500.0,0.00024573,2]
[357279917,1743976232517,-500.0,0.00024573,2]
[357279919,1743976232527,-500.0,0.00024573,2]
[357279921,1743976232536,-200.0,0.00024575,2]
[357279923,1743976232546,-500.0,0.00024589,2]
[357279925,1743976232556,-500.0,0.00024589,2]
[357279928,1743976232565,-500.0,0.00024589,2]
[357279930,1743976232575,-567.13350821,0.00024589,2]
[357279931,1743976232585,-500.0,0.00024589,2]
[357279933,1743976232595,-500.0,0.00024589,2]
[357279935,1743976232604,-363.11806025,0.00024589,2]
[357279938,1743976232614,-93909.33950199,0.0002459,2]
[357279940,1743976232626,-537.21595774,0.0002459,2]
[357280280,1743976238012,-275553.44454027,0.0002459,2]
[357280281,1743976238023,-380.0,0.00024658,2]
[357280282,1743976238033,-477.69496881,0.00024683,2]
[357280283,1743976238043,-14846.1048855,0.000248,2]
[357280284,1743976238053,-500.0,0.00024873,2]
[357280285,1743976238062,-500.0,0.00024873,2]
[357280286,1743976238072,-509.18141806,0.00024873,2]
[357280287,1743976238082,-500.0,0.00024873,2]
[357280288,1743976238092,-500.0,0.00024873,2]
[357280289,1743976238101,-500.0,0.00024873,2]
[357280290,1743976238111,-302.33418085,0.00024873,2]
[357280291,1743976238121,-500.0,0.00024873,2]
[357280293,1743976238131,-500.0,0.00024873,2]
[357280296,1743976238141,-500.0,0.00024873,2]
[357280297,1743976238150,-500.0,0.00024873,2]
[357280299,1743976238160,-500.0,0.00024873,2]
[357280300,1743976238170,-500.71988164,0.00024873,2]
[357280301,1743976238179,-500.0,0.00024873,2]
[357280302,1743976238189,-500.0,0.00024873,2]
[357280303,1743976238198,-500.0,0.00024873,2]
[357280304,1743976238208,-500.0,0.00024873,2]
[357280305,1743976238217,-500.0,0.00024873,2]
[357280306,1743976238226,-500.0,0.00024873,2]
[357280307,1743976238236,-500.0,0.00024873,2]
[357280308,1743976238246,-500.0,0.00024873,2]
[357280309,1743976238255,-611.34722706,0.00024873,2]
[357280310,1743976238265,-500.0,0.00024873,2]
[357280311,1743976238274,-200.0,0.00024899,2]
[357280312,1743976238284,-266669.55287,0.000249,2]
[357280313,1743976238294,-420.0,0.00025578,2]
[357280314,1743976238303,-173.72658462,0.00025644,2]
[357280315,1743976238313,-3208.69263345,0.000259,6]
[357280316,1743976238323,-207.4,0.00025944,2]
[357280317,1743976238332,-200.0,0.00026269,2]
[357280318,1743976238341,-500.0,0.0002643,2]
[357280319,1743976238351,-154.53,0.000266,31]
[357280320,1743976238360,-154.53,0.000266,31]
[357280321,1743976238370,-154.53,0.000266,31]
[357280322,1743976238379,-3208.69263317,0.00026624,6]
[357280323,1743976238389,-173.72658462,0.00026729,2]
[357280324,1743976238399,-1700.0,0.00026937,2]
[357280325,1743976238410,-200.0,0.00027,120]
[357280326,1743976238419,-200.0,0.00027,120]
[357280327,1743976238429,-500.0,0.00027151,2]
[357280328,1743976238438,-215.0738,0.00027313,2]
[357280329,1743976238447,-3208.69263317,0.00027348,7]
[357280330,1743976238457,-257.20483,0.00027397,120]
[357280331,1743976238466,-7442.29189872,0.00027397,5]
[357280332,1743976238476,-2120.8721265,0.00027491,2]
[357280333,1743976238486,-276.8,0.00027501,2]
[357280334,1743976238495,-276.8,0.00027501,2]
[357280335,1743976238505,-276.8,0.00027501,2]
[357280336,1743976238514,-276.8,0.00027501,2]
[357280337,1743976238524,-276.8,0.00027501,2]
[357280338,1743976238534,-276.8,0.00027501,2]
[357280339,1743976238544,-276.8,0.00027501,2]
[357280340,1743976238555,-276.8,0.00027501,2]
[357280341,1743976238565,-276.8,0.00027501,2]
[357280342,1743976238575,-2769.37041695,0.00027587,2]
[357280343,1743976238584,-312.59,0.00027639,2]
[357280344,1743976238594,-160.0,0.00027649,2]
[357280345,1743976238604,-151.0,0.000277,17]
[357280346,1743976238614,-587.0,0.0002775,2]
[357280347,1743976238624,-173.72658462,0.00027815,2]
[357280348,1743976238633,-3208.69263317,0.00028072,7]
[357280349,1743976238643,-151.0,0.000281,10]
[357280350,1743976238654,-313.86122,0.000283,120]
[357280351,1743976238664,-419.28457398,0.00028311,2]
[357280368,1743976238861,-677.08333333,0.00028311,2]
[357280369,1743976238889,-151.0,0.000286,19]
[357280370,1743976238900,-1700.0,0.00028605,2]
[357280371,1743976238910,-223.0315306,0.00028682,2]
[357280372,1743976238919,-3208.69263317,0.00028797,8]
[357280373,1743976238929,-500.0,0.000289,2]
[357280374,1743976238939,-173.72658462,0.000289,2]
[357280375,1743976238948,-300.0,0.00028973,5]
[357280376,1743976238958,-21208.721265,0.0002899,2]
[357280377,1743976238968,-117022.08219765,0.00029,7]
[357280378,1743976238977,-4071.89395064,0.00029,7]
[357280379,1743976238987,-117022.08219765,0.00029,7]
[357280380,1743976238996,-4071.89395064,0.00029,7]
[357280381,1743976239005,-117022.08219766,0.00029,7]
[357280382,1743976239015,-4071.89395063,0.00029,7]
[357280383,1743976239025,-117022.08219766,0.00029,7]
[357280384,1743976239035,-4071.89395063,0.00029,7]
[357280385,1743976239044,-500.0,0.00029,2]
[357280386,1743976239053,-12525.30748765,0.00029,7]
[357280387,1743976239063,-160.0,0.00029,7]
[357280388,1743976239073,-677.08333333,0.00029,7]
[357280389,1743976239083,-419.28457398,0.00029,7]
[357280390,1743976239093,-500.0,0.000291,2]
[357280391,1743976239102,-500.0,0.000292,2]
[357280392,1743976239112,-500.0,0.000293,2]
[357280393,1743976239122,-500.0,0.000294,2]
[357280394,1743976239131,-500.0,0.000295,2]
[357280395,1743976239141,-2120.8721265,0.00029511,2]
[357280396,1743976239151,-3208.69263317,0.00029521,8]
[357280397,1743976239160,-500.0,0.000296,2]
[357280398,1743976239170,-1700.0,0.00029642,2]
[357280399,1743976239179,-500.0,0.000297,2]
[357280400,1743976239189,-1700.0,0.0002973,2]
[357280401,1743976239199,-500.0,0.000298,2]
[357280402,1743976239209,-12500.0,0.00029804,3]
[357280403,1743976239218,-12525.30748765,0.00029804,3]
[357280404,1743976239227,-160.0,0.00029804,3]
[357280405,1743976239238,-160.0,0.00029804,3]
[357280406,1743976239247,-677.08333333,0.00029804,3]
[357280407,1743976239257,-419.28457398,0.00029804,3]
[357280408,1743976239267,-160.0,0.00029804,3]
[357280409,1743976239276,-2120.8721265,0.00029812,2]
[357280410,1743976239285,-12500.0,0.00029813,3]
[357280411,1743976239295,-12500.0,0.00029822,3]
[357280412,1743976239305,-677.08333333,0.00029822,3]
[357280413,1743976239314,-12500.0,0.00029831,3]
[357280414,1743976239323,-12500.0,0.00029839,3]
[357280415,1743976239333,-12500.0,0.00029848,3]
[357280416,1743976239342,-12500.0,0.00029857,3]
[357280417,1743976239352,-7700.48076663,0.00029857,3]
[357280418,1743976239361,-677.08333333,0.00029857,3]
[357280419,1743976239370,-500.0,0.000299,2]
[357280420,1743976239379,-500.0,0.0003,2]
[357280421,1743976239389,-252.0,0.0003,2]
[357280422,1743976239399,-5377.741875,0.0003,5]
[357280423,1743976239408,-231.28369723,0.00030051,2]
[357280424,1743976239417,-1000.0,0.00030052,5]
[357280425,1743976239427,-1000.0,0.00030052,5]
[357280426,1743976239436,-1000.0,0.00030052,5]
[357280427,1743976239446,-1000.0,0.00030052,5]
[357280428,1743976239455,-1000.0,0.00030052,5]
[357280429,1743976239466,-823.0,0.00030106,2]
[357280430,1743976239476,-3208.69263317,0.00030245,9]
[357280431,1743976239485,-1001.28450436,0.00030352,5]
[357280432,1743976239495,-650.0,0.00030352,5]
[357280433,1743976239504,-500.0,0.00030352,5]
[357280435,1743976239514,-1000.0,0.00030352,5]
[357280436,1743976239523,-297.62855318,0.00030352,5]
[357280437,1743976239533,-511.78491372,0.00030352,5]
[357280438,1743976239542,-1000.0,0.00030352,5]
[357280439,1743976239553,-500.0,0.00030352,5]
[357280440,1743976239563,-1000.0,0.00030352,5]
[357280441,1743976239573,-1000.0,0.00030352,5]
[357280442,1743976239583,-1000.0,0.00030352,5]
[357280443,1743976239592,-500.0,0.00030352,5]
[357280444,1743976239602,-500.0,0.00030591,7]
[357280445,1743976239611,-2769.37041695,0.000307,2]
[357280446,1743976239621,-3208.69263317,0.00030969,9]
[357280447,1743976239630,-1700.0,0.00031127,7]
[357280448,1743976239640,-1700.0,0.00031182,7]
[357280449,1743976239649,-239.84119403,0.0003142,2]
[357280450,1743976239659,-154.53,0.000315,31]
[357280451,1743976239671,-154.53,0.000315,31]
[357280452,1743976239682,-154.53,0.000315,31]
[357280453,1743976239691,-154.53,0.000315,31]
[357280454,1743976239701,-154.53,0.000315,31]
[357280455,1743976239710,-154.53,0.000315,31]
[357280456,1743976239721,-3208.69263317,0.00031693,10]
[357280457,1743976239734,-257.20483,0.00031963,120]
[357280459,1743976239743,-3208.69263317,0.00032417,10]
[357280461,1743976239753,-1152.0,0.00032663,2]
[357280463,1743976239762,-248.71531821,0.00032789,2]
[357280465,1743976239773,-3208.69263317,0.00033141,11]
[357280466,1743976239783,-1700.0,0.00033208,7]
[357280467,1743976239792,-2769.37041695,0.00033814,2]
[357280468,1743976239802,-3208.69263317,0.00033866,11]
[357280469,1743976239812,-257.91778498,0.00034158,2]
[357280470,1743976239821,-3208.69263317,0.0003459,12]
[357280471,1743976239830,-1700.0,0.00035098,7]
[357280472,1743976239839,-3208.69263317,0.00035314,12]
[357280473,1743976239849,-350.809505,0.00035404,2]
[357280474,1743976239859,-748.0,0.00035436,2]
[357280475,1743976239869,-267.46074303,0.00035527,2]
[357280476,1743976239879,-500.0,0.00035616,7]
[357280478,1743976239890,-619.17826477,0.00035616,7]
[357280479,1743976239899,-1700.0,0.00035709,7]
[357280480,1743976239910,-1700.0,0.00035854,7]
[357280481,1743976239919,-1000.0,0.0003589,2]
[357280482,1743976239929,-3208.69263317,0.00036038,13]
[357280483,1743976239938,-1700.0,0.00036045,7]
[357280484,1743976239948,-1700.0,0.00036214,7]
[357280485,1743976239957,-500.0,0.00036288,7]
[357280486,1743976239966,-1700.0,0.00036294,7]
[357280487,1743976239976,-1700.0,0.00036341,7]
[357280488,1743976239996,-154.53,0.000364,31]
[357280490,1743976240007,-154.53,0.000364,31]
[357280492,1743976240017,-154.53,0.000364,31]
[357280493,1743976240027,-154.53,0.000364,31]
[357280494,1743976240037,-154.53,0.000364,31]
[357280495,1743976240047,-154.53,0.000364,31]
[357280496,1743976240058,-257.20483,0.0003653,120]
[357280497,1743976240069,-3208.69263317,0.00036762,13]
[357280498,1743976240080,-474.5,0.0003687,30]
[357280499,1743976240090,-277.35679052,0.00036896,2]
[357280500,1743976240100,-2769.37041695,0.00036927,2]
[357280501,1743976240110,-1700.0,0.00037143,7]
[357280502,1743976240120,-1700.0,0.00037337,7]
[357280503,1743976240130,-201.75659287,0.0003746,10]
[357280504,1743976240140,-500.0,0.00037474,7]
[357280505,1743976240150,-3208.69263317,0.00037486,13]
[357280506,1743976240160,-1700.0,0.00037759,7]
[357280507,1743976240170,-1700.0,0.00037788,7]
[357280508,1743976240180,-1700.0,0.0003797,7]
[357280509,1743976240190,-170.91,0.00038017,50]
[357280510,1743976240200,-904.312,0.00038017,50]
[357280511,1743976240210,-3208.69263317,0.0003821,14]
[357280512,1743976240220,-287.61899177,0.00038265,2]
[357280513,1743976240230,-1700.0,0.00038422,7]
[357280514,1743976240240,-420.47256183,0.00038495,6]
[357280515,1743976240250,-3208.69263317,0.00038934,14]
[357280516,1743976240259,-1700.0,0.00039083,7]
[357280517,1743976240269,-337.14921556,0.00039634,2]
[357280518,1743976240279,-3208.69263317,0.00039659,15]
[357280520,1743976240289,-151.0,0.0004,14]
[357280521,1743976240299,-646828.64572663,0.0004,60]
[357280522,1743976240310,-169314.1806037,0.0004,120]
[357280523,1743976240319,-12525.30748765,0.0004,120]
[357280524,1743976240329,-1700.0,0.00040032,30]
[357280525,1743976240339,-2769.37041695,0.00040041,28]
[357280526,1743976240348,-1700.0,0.00040052,30]
[357280527,1743976240358,-1500.0,0.00040071,5]
[357280528,1743976240368,-1500.0,0.00040071,5]
[357280529,1743976240378,-1500.0,0.00040071,5]
[357280530,1743976240388,-1500.0,0.00040071,5]
[357280531,1743976240398,-1500.0,0.00040071,5]
[357280532,1743976240408,-865.86838408,0.00040371,5]
[357280533,1743976240418,-1500.0,0.00040371,5]
[357280534,1743976240428,-1500.0,0.00040371,5]
[357280535,1743976240437,-3208.69263317,0.00040383,15]
[357280536,1743976240447,-170.473934,0.00041096,2]
[357280537,1743976240457,-161.94632453,0.00041096,2]
[357280538,1743976240467,-257.20483,0.00041096,120]
[357280539,1743976240476,-3208.69263317,0.00041107,16]
[357280540,1743976240486,-1000.0,0.00041211,120]
[357280541,1743976240496,-12525.30748765,0.0004127,2]
[357280542,1743976240507,-160.0,0.0004127,2]
[357280543,1743976240517,-160.0,0.0004127,2]
[357280544,1743976240527,-154.53,0.000413,31]
[357280545,1743976240538,-154.53,0.000413,31]
[357280546,1743976240547,-154.53,0.000413,31]
[357280547,1743976240558,-154.53,0.000413,31]
[357280548,1743976240567,-154.53,0.000413,31]
[357280549,1743976240577,-154.53,0.000413,31]
[357280550,1743976240586,-151.1,0.00041571,2]
[357280551,1743976240596,-1478.0,0.00041571,2]
[357280552,1743976240605,-542.0,0.00041571,2]
[357280553,1743976240615,-2254.0,0.00041571,2]
[357280554,1743976240626,-3208.69263317,0.00041831,16]
[357280555,1743976240636,-1700.0,0.00042217,30]
[357280556,1743976240646,-1700.0,0.00042299,30]
[357280557,1743976240655,-3208.69263317,0.00042555,17]
[357280558,1743976240666,-2200.0,0.00042574,14]
[357280559,1743976240676,-1700.0,0.00042653,30]
[357280560,1743976240686,-151.0,0.00043,120]
[357280561,1743976240696,-117022.08219765,0.00043,7]
[357280562,1743976240706,-4071.89395064,0.00043,7]
[357280563,1743976240715,-117022.08219765,0.00043,7]
[357280564,1743976240729,-4071.89395064,0.00043,7]
[357280565,1743976240739,-117022.08219766,0.00043,7]
[357280566,1743976240748,-4071.89395063,0.00043,7]
[357280567,1743976240758,-117022.08219766,0.00043,7]
[357280568,1743976240769,-4071.89395063,0.00043,7]
[357280569,1743976240778,-151.0,0.00043,120]
[357280570,1743976240788,-151.0,0.00043,120]
[357280571,1743976240798,-151.0,0.00043,120]
[357280572,1743976240809,-151.0,0.00043,120]
[357280573,1743976240819,-151.524379,0.00043,120]
[357280574,1743976240829,-151.0,0.00043,120]
[357280575,1743976240838,-151.0,0.00043,120]
[357280576,1743976240848,-151.0,0.00043,120]
[357280577,1743976240858,-151.0,0.00043,120]
[357280578,1743976240867,-168.533343,0.00043,120]
[357280579,1743976240877,-151.0,0.00043,120]
[357280580,1743976240887,-151.0,0.00043,120]
[357280581,1743976240896,-151.0,0.00043,120]
[357280582,1743976240906,-151.0,0.00043,120]
[357280583,1743976240916,-151.0,0.00043,120]
[357280584,1743976240926,-151.0,0.00043,120]
[357280585,1743976240936,-151.0,0.00043,2]
[357280586,1743976240946,-151.493971,0.00043,120]
[357280587,1743976240955,-151.0,0.00043,120]
[357280588,1743976240965,-151.0,0.00043,120]
[357280589,1743976240974,-151.0,0.00043,120]
[357280590,1743976240984,-151.0,0.00043,120]
[357280591,1743976240994,-151.0,0.00043,120]
[357280592,1743976241003,-151.0,0.00043,120]
[357280593,1743976241013,-151.0,0.00043,120]
[357280594,1743976241023,-151.0,0.00043,120]
[357280595,1743976241033,-151.0,0.00043,120]
[357280596,1743976241043,-151.0,0.00043,120]
[357280597,1743976241053,-151.0,0.00043,120]
[357280598,1743976241062,-2769.37041695,0.00043154,28]
[357280599,1743976241072,-3208.69263317,0.00043279,17]
[357280600,1743976241082,-720.19,0.000437,2]
[357280601,1743976241092,-533.16179593,0.00043835,120]
[357280602,1743976241101,-118693.5193735,0.00044,10]